[Event "Cracovia Festival-A 2023"]
[Site "Krakow"]
[Date "2023.12.31"]
[Round "5.24"]
[White "Dziewonski, Dariusz"]
[Black "Berin, Artem"]
[Result "1-0"]
[ECO "E08"]
[WhiteElo "2224"]
[BlackElo "2321"]
[Annotator "RC"]
[PlyCount "113"]
[EventDate "2023.12.24"]
[EventType "swiss"]
[EventCountry "POL"]
[SourceTitle "playchess.com"]
[Source "ChessBase"]
[SourceQuality "1"]
[TimeControl "40/5400+30:1800+30"]

1. Nf3 {[%emt 0:00:35]} e6 {[%emt 0:00:37]} 2. g3 {[%emt 0:01:45]} d5 {[%emt 0:00:33]} 3. Bg2 {[%emt 0:01:09]} Nf6 {[%emt 0:00:34]} 4. O-O {[%emt 0:01:10]} Be7 {[%emt 0:02:58]} 5. d4 {[%emt 0:01:40]} O-O {[%emt 0:00:17]} 6. c4 {[%emt 0:00:19]} Nbd7 {[%emt 0:00:10]} 7. Qc2 {[%emt 0:00:44]} a5 {[%emt 0:00:07]} 8. Rd1 {[%emt 0:00:45]} h6 {[%emt 0:00:09]} 9. Bf4 {[%emt 0:02:54]} dxc4 {[%emt 0:10:17]} 10. Qxc4 {[%emt 0:08:48]} Nd5 {[%emt 0:01:42]} 11. Ne5 {[%emt 0:04:34]} g5 {[%emt 0:16:43]} 12. Bd2 {[%emt 0:09:57]} N7b6 {[%emt 0:08:11]} 13. Qc2 {[%emt 0:01:58]} Nb4 {[%emt 0:02:23]} 14. Bxb4 {[%emt 0:02:04]} axb4 {[%emt 0:01:06]} 15. Ng6 {[%emt 0:01:35]} Re8 {[%emt 0:01:08]} 16. Nxe7+ {[%emt 0:01:25]} Qxe7 {[%emt 0:00:08]} 17. Nd2 {[%emt 0:02:47]} e5 {[%emt 0:07:08]} 18. d5 {[%emt 0:10:06]} Bg4 {[%emt 0:01:27]} 19. Rdc1 {[%emt 0:12:55]} Rec8 {[%emt 0:04:03]} 20. Nc4 {[%emt 0:03:02]} Nxc4 {[%emt 0:12:43]} 21. Qxc4 {[%emt 0:00:04]} Bd7 {[%emt 0:00:08]} 22. Qc5 {[%emt 0:05:22]} Qd6 {[%emt 0:08:49]} 23. Rc4 {[%emt 0:00:51]} b5 {[%emt 0:00:51]} 24. Qxd6 {[%emt 0:00:55]} cxd6 {[%emt 0:00:05]} 25. Rxb4 {[%emt 0:00:04]} Rc2 {[%emt 0:00:15]} 26. Bf1 {[%emt 0:04:05]} Ra4 {[%emt 0:01:54]} 27. Rxa4 {[%emt 0:03:58]} bxa4 {[%emt 0:00:18]} 28. Rb1 {[%emt 0:00:13]} Bf5 {[%emt 0:07:09]} 29. f3 {[%emt 0:01:45]} e4 {[%emt 0:03:41]} 30. g4 {[%emt 0:04:28]} Bg6 {[%emt 0:00:49]} 31. Kf2 {[%emt 0:00:25]} exf3 {[%emt 0:02:35]} 32. Kxf3 {[%emt 0:00:07]} a3 {[%emt 0:00:45]} 33. e4 {[%emt 0:00:30]} axb2 {[%emt 0:01:11]} 34. Bd3 {[%emt 0:02:05]} Rxh2 {[%emt 0:02:14]} 35. a4 {[%emt 0:03:00]} h5 {[%emt 0:01:17]} 36. a5 {[%emt 0:01:52]} hxg4+ {[%emt 0:00:18]} 37. Ke3 {[%emt 0:00:23]} Kg7 {[%emt 0:02:12]} 38. a6 {[%emt 0:00:27]} Rh8 {[%emt 0:00:23]} 39. Rxb2 {[%emt 0:00:58]} Ra8 {[%emt 0:00:09]} 40. Rb7 {[%emt 0:00:00]} Kf6 {[%emt 0:00:00]} 41. a7 {[%emt 0:05:01]} g3 {[%emt 0:11:02]} 42. Rd7 {[%emt 0:05:26]} g2 {[%emt 0:08:17]} 43. Kf2 {[%emt 0:01:03]} Ke5 {[%emt 0:00:07]} 44. Bb5 {[%emt 0:01:06]} Bxe4 {[%emt 0:05:38]} 45. Bc6 {[%emt 0:01:15]} Rh8 {[%emt 0:05:41]} 46. Re7+ {[%emt 0:02:47]} Kd4 {[%emt 0:01:38]} 47. a8=Q {[%emt 0:01:11]} Rxa8 {[%emt 0:00:04]} 48. Bxa8 {[%emt 0:00:07]} f5 {[%emt 0:00:04]} 49. Re6 {[%emt 0:01:58]} Kc5 {[%emt 0:01:10]} 50. Rg6 {[%emt 0:01:25]} g4 {[%emt 0:00:41]} 51. Re6 {[%emt 0:02:03]} Bf3 {[%emt 0:02:37]} 52. Rf6 {[%emt 0:02:31]} Be4 {[%emt 0:00:06]} 53. Kg1 {[%emt 0:00:50]} g3 {[%emt 0:00:34]} 54. Rg6 {[%emt 0:04:47]} Kd4 {[%emt 0:01:18]} 55. Rxd6 {[%emt 0:02:28]} f4 {[%emt 0:00:23]} 56. Re6 {[%emt 0:01:13]} Bf5 {[%emt 0:00:45]} 57. Kxg2 {[%emt 0:00:39]} 1-0

[Event "Cracovia Festival-A 2023"]
[Site "Krakow"]
[Date "2023.12.31"]
[Round "5.25"]
[White "Luczak, Filip"]
[Black "Pyrig, Roman"]
[Result "1/2-1/2"]
[ECO "A00"]
[WhiteElo "2319"]
[BlackElo "2154"]
[Annotator "RC"]
[PlyCount "122"]
[EventDate "2023.12.24"]
[EventType "swiss"]
[EventCountry "POL"]
[SourceTitle "playchess.com"]
[Source "ChessBase"]
[SourceQuality "1"]
[TimeControl "40/5400+30:1800+30"]

1. g3 {[%emt 0:00:04]} d5 {[%emt 0:06:42]} 2. Bg2 {[%emt 0:01:49]} Nf6 {[%emt 0:00:12]} 3. d3 {[%emt 0:00:48]} c5 {[%emt 0:02:10]} 4. e4 {[%emt 0:01:00]} dxe4 {[%emt 0:01:56]} 5. dxe4 {[%emt 0:00:02]} Qxd1+ {[%emt 0:00:10]} 6. Kxd1 {[%emt 0:00:03]} Nc6 {[%emt 0:00:19]} 7. c3 {[%emt 0:01:30]} e5 {[%emt 0:02:25]} 8. f3 {[%emt 0:02:13]} Be6 {[%emt 0:01:18]} 9. Kc2 {[%emt 0:00:28]} O-O-O {[%emt 0:02:24]} 10. Bh3 {[%emt 0:00:13]} Bxh3 {[%emt 0:03:54]} 11. Nxh3 {[%emt 0:00:02]} h6 {[%emt 0:00:15]} 12. Be3 {[%emt 0:01:44]} Be7 {[%emt 0:00:55]} 13. Nf2 {[%emt 0:05:27]} b6 14. Nd2 {[%emt 0:05:53]} Ne8 {[%emt 0:03:46]} 15. h4 {[%emt 0:10:21]} Nd6 {[%emt 0:03:15]} 16. h5 {[%emt 0:03:50]} f5 {[%emt 0:02:19]} 17. Rae1 {[%emt 0:04:22]} Rhf8 {[%emt 0:02:02]} 18. exf5 {[%emt 0:01:31]} Rxf5 {[%emt 0:00:04]} 19. Nfe4 {[%emt 0:03:00]} Nxe4 {[%emt 0:03:12]} 20. fxe4 {[%emt 0:00:08]} Rf7 {[%emt 0:00:05]} 21. Ref1 {[%emt 0:03:16]} Rdf8 {[%emt 0:00:06]} 22. Kd3 {[%emt 0:03:20]} Kd7 {[%emt 0:08:03]} 23. Rxf7 {[%emt 0:01:54]} Rxf7 {[%emt 0:00:03]} 24. a3 {[%emt 0:01:17]} Na5 {[%emt 0:06:53]} 25. b4 {[%emt 0:09:21]} Nb7 {[%emt 0:00:39]} 26. Kc4 {[%emt 0:09:14]} Kc6 {[%emt 0:00:21]} 27. b5+ {[%emt 0:01:24]} Kd6 {[%emt 0:00:10]} 28. a4 {[%emt 0:03:13]} Ke6 {[%emt 0:00:50]} 29. Kd3 {[%emt 0:00:08]} Na5 {[%emt 0:03:03]} 30. Rf1 {[%emt 0:04:40]} c4+ {[%emt 0:00:42]} 31. Kc2 {[%emt 0:05:15]} Bf6 {[%emt 0:00:05]} 32. Rf5 {[%emt 0:03:18]} Rc7 {[%emt 0:00:01]} 33. g4 {[%emt 0:02:15]} Nb7 {[%emt 0:00:06]} 34. Rf1 {[%emt 0:00:54]} Nd6 {[%emt 0:00:01]} 35. Rb1 {[%emt 0:02:12]} Nb7 {[%emt 0:03:22]} 36. Kd1 {[%emt 0:01:31]} Be7 {[%emt 0:01:34]} 37. Ke2 {[%emt 0:00:47]} Bc5 {[%emt 0:03:32]} 38. Bxc5 Nxc5 {[%emt 0:02:28]} 39. Rb4 {[%emt 0:02:01]} Rf7 {[%emt 0:00:01]} 40. Rxc4 {[%emt 0:00:00]} Rf4 {[%emt 0:00:00]} 41. a5 {[%emt 0:08:54]} Kd6 {[%emt 0:00:21]} 42. axb6 {[%emt 0:03:16]} axb6 {[%emt 0:00:34]} 43. Rb4 {[%emt 0:00:23]} Rxg4 {[%emt 0:00:41]} 44. Nc4+ {[%emt 0:04:42]} Kc7 {[%emt 0:00:51]} 45. Nxe5 {[%emt 0:04:37]} Rxe4+ {[%emt 0:00:08]} 46. Rxe4 {[%emt 0:00:05]} Nxe4 {[%emt 0:00:02]} 47. Kd3 {[%emt 0:05:49]} Nf6 {[%emt 0:00:03]} 48. c4 {[%emt 0:01:06]} Nxh5 {[%emt 0:00:45]} 49. Ke4 {[%emt 0:01:59]} Kd6 {[%emt 0:00:33]} 50. Nd3 {[%emt 0:01:21]} g5 {[%emt 0:01:12]} 51. Kf5 {[%emt 0:00:52]} Nf4 {[%emt 0:00:05]} 52. Ne5 {[%emt 0:00:36]} Ke7 {[%emt 0:05:44]} 53. Nc6+ {[%emt 0:02:43]} Kd7 {[%emt 0:01:17]} 54. Ne5+ {[%emt 0:00:17]} Ke8 {[%emt 0:00:38]} 55. Ng4 {[%emt 0:00:44]} h5 {[%emt 0:00:02]} 56. Nf6+ {[%emt 0:03:29]} Ke7 {[%emt 0:00:50]} 57. Kxg5 {[%emt 0:01:26]} Ne6+ {[%emt 0:00:01]} 58. Kf5 {[%emt 0:00:09]} Nd4+ {[%emt 0:00:04]} 59. Kg5 {[%emt 0:00:15]} Nf3+ {[%emt 0:00:02]} 60. Kf5 {[%emt 0:00:07]} h4 {[%emt 0:00:41]} 61. Nd5+ {[%emt 0:00:27]} Kd6 {[%emt 0:00:07]} 1/2-1/2

[Event "Cracovia Festival-A 2023"]
[Site "Krakow"]
[Date "2023.12.31"]
[Round "5.26"]
[White "Suder, Jakub"]
[Black "Gorkiewicz, Mateusz"]
[Result "1-0"]
[ECO "D35"]
[WhiteElo "2312"]
[BlackElo "2147"]
[Annotator "RC"]
[PlyCount "79"]
[EventDate "2023.12.24"]
[EventType "swiss"]
[EventCountry "POL"]
[SourceTitle "playchess.com"]
[Source "ChessBase"]
[SourceQuality "1"]
[TimeControl "40/5400+30:1800+30"]

1. d4 {[%emt 0:06:33]} Nf6 {[%emt 0:00:09]} 2. c4 {[%emt 0:00:04]} e6 {[%emt 0:00:10]} 3. Nc3 {[%emt 0:00:04]} d5 {[%emt 0:00:12]} 4. cxd5 {[%emt 0:00:03]} exd5 {[%emt 0:00:09]} 5. Bg5 {[%emt 0:00:05]} Be7 {[%emt 0:00:25]} 6. e3 {[%emt 0:00:04]} Nbd7 {[%emt 0:00:20]} 7. Bd3 {[%emt 0:00:10]} c6 {[%emt 0:00:19]} 8. Nge2 {[%emt 0:00:06]} Nh5 {[%emt 0:01:26]} 9. Bxe7 {[%emt 0:00:06]} Qxe7 {[%emt 0:00:10]} 10. g4 {[%emt 0:00:01]} Nhf6 {[%emt 0:00:42]} 11. Ng3 {[%emt 0:00:09]} Nb6 {[%emt 0:12:13]} 12. g5 {[%emt 0:00:41]} Nfd7 {[%emt 0:04:38]} 13. h4 {[%emt 0:00:51]} Nf8 {[%emt 0:05:09]} 14. Qe2 {[%emt 0:06:28]} Bd7 {[%emt 0:07:17]} 15. O-O-O {[%emt 0:07:39]} O-O-O {[%emt 0:02:01]} 16. Kb1 {[%emt 0:06:13]} h6 {[%emt 0:07:28]} 17. gxh6 {[%emt 0:01:25]} Rxh6 {[%emt 0:00:54]} 18. h5 {[%emt 0:00:56]} g6 {[%emt 0:05:56]} 19. Rc1 {[%emt 0:06:57]} Qf6 {[%emt 0:06:07]} 20. a4 {[%emt 0:02:11]} Kb8 {[%emt 0:01:13]} 21. a5 {[%emt 0:00:42]} Nc8 {[%emt 0:01:09]} 22. Qc2 {[%emt 0:04:05]} Qd6 {[%emt 0:05:10]} 23. Qb3 {[%emt 0:03:41]} Ka8 {[%emt 0:05:29]} 24. a6 {[%emt 0:07:33]} b6 {[%emt 0:01:23]} 25. e4 {[%emt 0:00:43]} dxe4 {[%emt 0:01:19]} 26. Bxe4 {[%emt 0:02:38]} Ne6 {[%emt 0:14:24]} 27. Nb5 {[%emt 0:03:03]} Qf4 {[%emt 0:06:14]} 28. d5 {[%emt 0:05:25]} Nc5 {[%emt 0:01:30]} 29. Rxc5 {[%emt 0:02:23]} bxc5 {[%emt 0:00:09]} 30. Rh4 {[%emt 0:05:35]} c4 {[%emt 0:07:46]} 31. Qb4 {[%emt 0:03:53]} Qe5 {[%emt 0:01:21]} 32. dxc6 {[%emt 0:06:49]} Bf5 {[%emt 0:00:40]} 33. Nd4 {[%emt 0:02:01]} Nb6 {[%emt 0:00:58]} 34. Ngxf5 {[%emt 0:00:34]} Kb8 {[%emt 0:02:19]} 35. Nf3 {[%emt 0:03:36]} Qe6 {[%emt 0:00:37]} 36. c7+ {[%emt 0:00:26]} Kxc7 {[%emt 0:00:05]} 37. Qc5+ {[%emt 0:00:08]} Kb8 {[%emt 0:00:10]} 38. N3d4 {[%emt 0:01:14]} Na4 {[%emt 0:01:16]} 39. Nc6+ {[%emt 0:01:28]} Kc8 {[%emt 0:00:05]} 40. Nxa7+ {[%emt 0:00:00]} 1-0

[Event "Cracovia Festival-A 2023"]
[Site "Krakow"]
[Date "2023.12.31"]
[Round "5.27"]
[White "Fishchuk, Vladyslav"]
[Black "Kowalczyk, Pawel"]
[Result "0-1"]
[ECO "D30"]
[WhiteElo "2198"]
[BlackElo "2295"]
[Annotator "RC"]
[PlyCount "102"]
[EventDate "2023.12.24"]
[EventType "swiss"]
[EventCountry "POL"]
[SourceTitle "playchess.com"]
[Source "ChessBase"]
[SourceQuality "1"]
[TimeControl "40/5400+30:1800+30"]

1. d4 {[%emt 0:00:02]} d5 {[%emt 0:04:45]} 2. c4 {[%emt 0:00:05]} e6 {[%emt 0:01:24]} 3. Nf3 {[%emt 0:00:07]} a6 {[%emt 0:00:18]} 4. Bg5 {[%emt 0:00:05]} f6 {[%emt 0:01:11]} 5. Bd2 {[%emt 0:21:42]} dxc4 {[%emt 0:03:09]} 6. e3 {[%emt 0:02:09]} b5 {[%emt 0:00:07]} 7. a4 {[%emt 0:00:21]} Bb7 {[%emt 0:00:18]} 8. axb5 {[%emt 0:02:27]} axb5 {[%emt 0:00:02]} 9. Rxa8 {[%emt 0:00:06]} Bxa8 {[%emt 0:00:04]} 10. b3 {[%emt 0:00:04]} c5 {[%emt 0:02:09]} 11. bxc4 {[%emt 0:03:06]} b4 {[%emt 0:06:57]} 12. Bd3 {[%emt 0:01:16]} Bd6 {[%emt 0:07:21]} 13. e4 {[%emt 0:05:21]} cxd4 {[%emt 0:00:35]} 14. Nxd4 {[%emt 0:00:29]} Be5 {[%emt 0:02:11]} 15. Qa4+ {[%emt 0:01:38]} Kf7 {[%emt 0:00:24]} 16. Qxa8 {[%emt 0:01:54]} Qxd4 {[%emt 0:00:12]} 17. Ke2 {[%emt 0:02:01]} Ne7 {[%emt 0:00:38]} 18. Be3 {[%emt 0:01:18]} Qb2+ {[%emt 0:00:33]} 19. Nd2 {[%emt 0:00:27]} Rd8 {[%emt 0:00:27]} 20. Qa4 {[%emt 0:06:52]} Nbc6 {[%emt 0:01:06]} 21. Rb1 {[%emt 0:00:25]} Qa3 {[%emt 0:00:21]} 22. Qc2 {[%emt 0:00:47]} Bc3 {[%emt 0:00:38]} 23. c5 {[%emt 0:02:07]} Bxd2 {[%emt 0:07:31]} 24. Kxd2 {[%emt 0:00:05]} Ne5 {[%emt 0:03:35]} 25. Rb3 {[%emt 0:00:06]} Qa1 {[%emt 0:00:13]} 26. f4 {[%emt 0:03:19]} Nxd3 {[%emt 0:03:23]} 27. Rxd3 {[%emt 0:00:22]} Ra8 {[%emt 0:00:01]} 28. Bd4 {[%emt 0:01:01]} Qh1 {[%emt 0:03:55]} 29. Ke3 {[%emt 0:01:58]} Qxh2 {[%emt 0:04:42]} 30. Qf2 {[%emt 0:00:53]} Qh1 {[%emt 0:01:40]} 31. Bb2 {[%emt 0:01:35]} Qb1 {[%emt 0:00:41]} 32. Qd2 {[%emt 0:02:15]} Ra2 {[%emt 0:05:32]} 33. Rb3 {[%emt 0:00:11]} Qg1+ {[%emt 0:00:12]} 34. Qf2 {[%emt 0:00:11]} Qxf2+ {[%emt 0:00:08]} 35. Kxf2 {[%emt 0:00:13]} Nc6 {[%emt 0:00:03]} 36. Ke1 {[%emt 0:02:09]} Ra5 {[%emt 0:01:07]} 37. Rd3 {[%emt 0:00:26]} Rxc5 {[%emt 0:00:26]} 38. Rd7+ {[%emt 0:00:06]} Kg6 {[%emt 0:00:17]} 39. g4 {[%emt 0:00:20]} Rc2 {[%emt 0:00:41]} 40. Rd6 {[%emt 0:00:00]} Kf7 {[%emt 0:00:00]} 41. Kd1 {[%emt 0:01:26]} Rxb2 {[%emt 0:01:11]} 42. Rxc6 {[%emt 0:00:02]} Rg2 {[%emt 0:00:10]} 43. Rc7+ {[%emt 0:00:11]} Kg6 {[%emt 0:00:06]} 44. f5+ {[%emt 0:01:00]} exf5 {[%emt 0:00:03]} 45. gxf5+ {[%emt 0:00:11]} Kh6 {[%emt 0:00:11]} 46. Rb7 {[%emt 0:00:05]} b3 {[%emt 0:01:32]} 47. Rxb3 {[%emt 0:00:16]} Kg5 {[%emt 0:00:05]} 48. Rh3 {[%emt 0:03:47]} h5 {[%emt 0:00:06]} 49. Ke1 {[%emt 0:00:05]} Rg4 {[%emt 0:00:46]} 50. Re3 {[%emt 0:00:32]} Kf4 {[%emt 0:00:06]} 51. Re2 {[%emt 0:00:10]} Ke5 {[%emt 0:00:06]} 0-1

[Event "Cracovia Festival-A 2023"]
[Site "Krakow"]
[Date "2023.12.31"]
[Round "5.28"]
[White "Selbes, Tamer Tarik"]
[Black "Nemsadze, Daviti"]
[Result "1/2-1/2"]
[ECO "B40"]
[WhiteElo "2185"]
[BlackElo "2253"]
[Annotator "RC"]
[PlyCount "75"]
[EventDate "2023.12.24"]
[EventType "swiss"]
[EventCountry "POL"]
[SourceTitle "playchess.com"]
[Source "ChessBase"]
[SourceQuality "1"]
[TimeControl "40/5400+30:1800+30"]

1. e4 {[%emt 0:00:03]} c5 {[%emt 0:02:14]} 2. Nf3 {[%emt 0:00:32]} e6 {[%emt 0:00:17]} 3. d3 {[%emt 0:00:55]} Nc6 {[%emt 0:00:09]} 4. g3 {[%emt 0:00:09]} g6 {[%emt 0:02:20]} 5. Bg2 {[%emt 0:00:07]} Bg7 {[%emt 0:00:04]} 6. O-O {[%emt 0:00:07]} Nge7 {[%emt 0:02:46]} 7. c3 {[%emt 0:00:35]} e5 {[%emt 0:09:19]} 8. a3 {[%emt 0:01:12]} d6 {[%emt 0:00:42]} 9. b4 {[%emt 0:00:11]} a6 {[%emt 0:00:04]} 10. Be3 {[%emt 0:07:07]} b6 {[%emt 0:00:19]} 11. h3 {[%emt 0:01:06]} O-O {[%emt 0:02:36]} 12. d4 {[%emt 0:02:29]} exd4 {[%emt 0:00:39]} 13. cxd4 {[%emt 0:00:05]} cxb4 {[%emt 0:00:23]} 14. Nbd2 {[%emt 0:03:59]} d5 {[%emt 0:07:01]} 15. Ne5 {[%emt 0:20:38]} Nxe5 {[%emt 0:13:57]} 16. dxe5 {[%emt 0:00:05]} Bxe5 {[%emt 0:03:25]} 17. Bh6 {[%emt 0:01:10]} Re8 {[%emt 0:04:08]} 18. axb4 {[%emt 0:01:59]} Bb7 {[%emt 0:07:49]} 19. Nf3 {[%emt 0:01:07]} Bh8 {[%emt 0:01:50]} 20. e5 {[%emt 0:07:24]} Nc6 {[%emt 0:01:51]} 21. Re1 {[%emt 0:11:37]} Nxe5 {[%emt 0:00:55]} 22. Nxe5 {[%emt 0:04:34]} Rxe5 {[%emt 0:00:07]} 23. Ra3 {[%emt 0:01:58]} Rxe1+ {[%emt 0:11:37]} 24. Qxe1 {[%emt 0:00:05]} a5 {[%emt 0:00:02]} 25. Kh2 {[%emt 0:02:28]} a4 {[%emt 0:04:17]} 26. b5 {[%emt 0:05:48]} Qd7 {[%emt 0:06:45]} 27. Qb4 {[%emt 0:01:56]} Qd8 {[%emt 0:09:13]} 28. Rxa4 {[%emt 0:00:34]} Bf6 {[%emt 0:06:58]} 29. h4 {[%emt 0:03:54]} Rxa4 {[%emt 0:00:36]} 30. Qxa4 {[%emt 0:00:06]} Bc8 {[%emt 0:00:10]} 31. Qa8 {[%emt 0:15:20]} d4 {[%emt 0:00:56]} 32. Bd5 {[%emt 0:01:01]} d3 {[%emt 0:01:40]} 33. Qa2 {[%emt 0:00:18]} Qd7 {[%emt 0:00:30]} 34. Qa3 {[%emt 0:00:55]} Bh8 35. Qa2 Qd8 36. Bg2 Bf6 37. Qa8 Be6 38. Qb7 1/2-1/2

[Event "Cracovia Festival-A 2023"]
[Site "Krakow"]
[Date "2023.12.31"]
[Round "5.30"]
[White "Buchenau, Frank"]
[Black "Piekielny, Pawel"]
[Result "1/2-1/2"]
[ECO "B10"]
[WhiteElo "2135"]
[BlackElo "2250"]
[Annotator "RC"]
[PlyCount "135"]
[EventDate "2023.12.24"]
[EventType "swiss"]
[EventCountry "POL"]
[SourceTitle "playchess.com"]
[Source "ChessBase"]
[SourceQuality "1"]
[TimeControl "40/5400+30:1800+30"]

1. e4 {[%emt 0:00:02]} c6 {[%emt 0:00:04]} 2. Nf3 {[%emt 0:00:10]} d5 {[%emt 0:00:04]} 3. d3 {[%emt 0:00:22]} Qc7 {[%emt 0:01:31]} 4. Nc3 {[%emt 0:08:31]} dxe4 {[%emt 0:01:00]} 5. Nxe4 {[%emt 0:01:59]} Nf6 {[%emt 0:00:09]} 6. Be2 {[%emt 0:05:08]} Bf5 {[%emt 0:07:54]} 7. Ng3 {[%emt 0:05:41]} Bg6 {[%emt 0:02:03]} 8. O-O {[%emt 0:05:24]} e6 {[%emt 0:05:12]} 9. Nh4 {[%emt 0:13:26]} Bd6 {[%emt 0:06:42]} 10. b3 {[%emt 0:09:17]} Nbd7 {[%emt 0:02:20]} 11. Bb2 {[%emt 0:01:11]} O-O {[%emt 0:01:07]} 12. Nxg6 {[%emt 0:01:24]} hxg6 {[%emt 0:00:04]} 13. c4 {[%emt 0:04:21]} c5 {[%emt 0:06:42]} 14. Qc2 {[%emt 0:04:31]} Rad8 {[%emt 0:03:08]} 15. Rfd1 {[%emt 0:01:49]} Be5 {[%emt 0:08:10]} 16. d4 {[%emt 0:01:11]} cxd4 {[%emt 0:00:14]} 17. Bxd4 {[%emt 0:00:07]} Bxd4 {[%emt 0:00:30]} 18. Rxd4 {[%emt 0:00:07]} Ne5 {[%emt 0:00:03]} 19. Rad1 {[%emt 0:00:54]} Nc6 {[%emt 0:00:33]} 20. Rxd8 {[%emt 0:08:50]} Rxd8 {[%emt 0:00:10]} 21. Rxd8+ {[%emt 0:04:26]} Qxd8 {[%emt 0:00:11]} 22. Bf3 {[%emt 0:02:08]} Nd4 {[%emt 0:00:31]} 23. Qd3 {[%emt 0:06:19]} b6 {[%emt 0:00:35]} 24. h4 {[%emt 0:03:00]} a5 {[%emt 0:03:46]} 25. Kf1 {[%emt 0:02:22]} Qd7 {[%emt 0:06:46]} 26. Ne4 {[%emt 0:03:59]} Nxe4 {[%emt 0:02:58]} 27. Qxe4 {[%emt 0:02:45]} Qd6 {[%emt 0:02:11]} 28. g3 {[%emt 0:01:34]} Kh7 {[%emt 0:02:40]} 29. h5 {[%emt 0:00:26]} f5 {[%emt 0:01:17]} 30. hxg6+ {[%emt 0:00:14]} Kxg6 {[%emt 0:00:05]} 31. Qa8 {[%emt 0:01:40]} Kh7 {[%emt 0:04:45]} 32. Kg2 {[%emt 0:01:20]} Qe5 {[%emt 0:23:51]} 33. Qe8 {[%emt 0:01:03]} f4 {[%emt 0:00:33]} 34. gxf4 {[%emt 0:01:16]} Qxf4 {[%emt 0:01:03]} 35. Qh5+ {[%emt 0:00:07]} Kg8 {[%emt 0:00:05]} 36. Qe8+ {[%emt 0:00:33]} Qf8 {[%emt 0:00:06]} 37. Qxf8+ {[%emt 0:00:44]} Kxf8 {[%emt 0:00:04]} 38. Bd1 {[%emt 0:00:34]} Ke7 {[%emt 0:00:05]} 39. f4 {[%emt 0:00:23]} Kf6 {[%emt 0:03:16]} 40. Kf2 {[%emt 0:00:00]} e5 {[%emt 0:00:00]} 41. Ke3 {[%emt 0:05:39]} Kf5 {[%emt 0:06:44]} 42. a3 {[%emt 0:02:13]} Nc6 {[%emt 0:01:14]} 43. Bc2+ {[%emt 0:00:43]} Ke6 {[%emt 0:00:37]} 44. Be4 {[%emt 0:01:10]} exf4+ {[%emt 0:01:10]} 45. Kxf4 {[%emt 0:00:08]} Ne5 {[%emt 0:00:05]} 46. Kg5 {[%emt 0:04:24]} Kd6 {[%emt 0:02:36]} 47. Kf5 {[%emt 0:03:05]} a4 {[%emt 0:04:48]} 48. bxa4 {[%emt 0:04:15]} Nxc4 {[%emt 0:00:06]} 49. Kg6 {[%emt 0:00:27]} Nxa3 {[%emt 0:00:04]} 50. Kxg7 {[%emt 0:00:31]} Ke5 {[%emt 0:00:03]} 51. Bc6 {[%emt 0:01:05]} Kd6 {[%emt 0:02:05]} 52. Be8 {[%emt 0:00:29]} Ke7 {[%emt 0:00:51]} 53. Bc6 {[%emt 0:00:51]} Nc4 {[%emt 0:00:04]} 54. Bb5 {[%emt 0:01:56]} Nd6 {[%emt 0:00:12]} 55. Bc6 {[%emt 0:00:33]} Nf5+ {[%emt 0:02:17]} 56. Kg6 {[%emt 0:00:12]} Nd4 {[%emt 0:00:04]} 57. Bd5 {[%emt 0:00:15]} Kd6 {[%emt 0:00:18]} 58. Bf7 {[%emt 0:00:31]} Ke5 {[%emt 0:04:47]} 59. Be8 {[%emt 0:00:36]} Ke6 {[%emt 0:00:55]} 60. Bf7+ {[%emt 0:00:19]} Ke7 {[%emt 0:00:34]} 61. Bg8 {[%emt 0:01:02]} Ne6 {[%emt 0:01:12]} 62. Kf5 {[%emt 0:00:44]} Nc5 {[%emt 0:00:05]} 63. a5 {[%emt 0:00:58]} bxa5 {[%emt 0:00:06]} 64. Ke5 {[%emt 0:00:11]} Nd7+ {[%emt 0:02:29]} 65. Kd5 {[%emt 0:00:30]} Nf6+ {[%emt 0:00:04]} 66. Kc5 {[%emt 0:00:11]} Nxg8 {[%emt 0:00:04]} 67. Kb5 {[%emt 0:00:06]} Nf6 {[%emt 0:00:05]} 68. Kxa5 {[%emt 0:00:05]} 1/2-1/2

[Event "Cracovia Festival-A 2023"]
[Site "Krakow"]
[Date "2023.12.31"]
[Round "5.31"]
[White "Lehocz, Jozsef Jr."]
[Black "Turski, Bartlomiej"]
[Result "1/2-1/2"]
[ECO "B22"]
[WhiteElo "2116"]
[BlackElo "2380"]
[Annotator "RC"]
[PlyCount "53"]
[EventDate "2023.12.24"]
[EventType "swiss"]
[EventCountry "POL"]
[SourceTitle "playchess.com"]
[Source "ChessBase"]
[SourceQuality "1"]
[TimeControl "40/5400+30:1800+30"]

1. e4 {[%emt 0:00:06]} c5 {[%emt 0:00:03]} 2. c3 {[%emt 0:00:15]} Nf6 {[%emt 0:00:04]} 3. e5 {[%emt 0:00:05]} Nd5 {[%emt 0:00:03]} 4. g3 {[%emt 0:00:11]} d6 {[%emt 0:00:30]} 5. exd6 {[%emt 0:00:20]} Nc6 {[%emt 0:01:04]} 6. Bg2 {[%emt 0:00:47]} Qxd6 {[%emt 0:00:20]} 7. Ne2 {[%emt 0:00:17]} e5 {[%emt 0:00:12]} 8. O-O {[%emt 0:04:42]} Bg4 {[%emt 0:00:08]} 9. h3 {[%emt 0:02:01]} Bh5 {[%emt 0:00:05]} 10. g4 {[%emt 0:25:28]} Bg6 {[%emt 0:01:29]} 11. d4 {[%emt 0:00:23]} exd4 {[%emt 0:12:43]} 12. cxd4 {[%emt 0:00:29]} O-O-O {[%emt 0:00:39]} 13. Nbc3 {[%emt 0:04:39]} Nxc3 {[%emt 0:03:52]} 14. bxc3 {[%emt 0:00:13]} Qc7 {[%emt 0:01:17]} 15. Be3 {[%emt 0:24:14]} Bd6 {[%emt 0:09:33]} 16. Qa4 {[%emt 0:00:40]} Bd3 {[%emt 0:09:39]} 17. Rfe1 {[%emt 0:00:59]} Rhe8 {[%emt 0:06:40]} 18. dxc5 {[%emt 0:06:31]} Bh2+ {[%emt 0:01:43]} 19. Kh1 {[%emt 0:01:02]} Be5 {[%emt 0:00:25]} 20. Nd4 {[%emt 0:00:50]} Bxd4 {[%emt 0:01:09]} 21. cxd4 {[%emt 0:00:39]} Be4 {[%emt 0:00:50]} 22. Rad1 {[%emt 0:08:55]} Bxg2+ {[%emt 0:00:34]} 23. Kxg2 {[%emt 0:00:52]} Rd5 {[%emt 0:00:27]} 24. Bf4 {[%emt 0:04:16]} Qd7 {[%emt 0:00:58]} 25. Bd6 {[%emt 0:01:24]} Rxe1 {[%emt 0:01:19]} 26. Rxe1 {[%emt 0:00:03]} Rxd4 {[%emt 0:00:38]} 27. Qb3 {[%emt 0:02:17]} 1/2-1/2